bitfinex/quotes_SOLUSD_20250924
["timestamp","ask_amount","ask_price","bid_price","bid_amount"]
[1758697437613,1.49292865,211.12,211.11,37.12]
[1758697437820,6.22957131,211.12,211.11,37.12]
[1758697438622,23.52449577,211.31,211.11,37.12]
[1758697438623,0.72,211.16,211.11,37.12]
[1758697438922,1.49292865,211.14,211.12,0.69]
[1758697439316,1.49292865,211.14,211.11,37.12]
[1758697439521,1.49292865,211.14,211.12,0.69]
[1758697439715,1.49292865,211.14,211.13,0.69]
[1758697440022,1.49292865,211.14,211.11,37.81]
[1758697440224,4.73592546,211.16,211.12,0.69]
[1758697440432,1.49292865,211.14,211.12,0.69]
[1758697440633,4.73592546,211.16,211.12,0.69]
[1758697440835,1.49292865,211.14,211.12,0.69]
[1758697441326,1.49292865,211.14,211.11,37.12]
[1758697441832,6.22918525,211.14,211.11,37.12]
[1758697442000,1.49292865,211.14,211.11,37.12]
[1758697442200,1.49292865,211.14,211.12,0.69]
[1758697442400,1.49292865,211.14,211.11,37.12]
[1758697442601,1.49292865,211.14,211.11,37.81]
[1758697442807,1.49292865,211.14,211.11,42.5467953]
[1758697443321,1.49292865,211.14,211.11,37.81]
[1758697444327,5.45572463,211.17,211.11,37.12]
[1758697444543,1.49292865,211.18,211.14,26.0]
[1758697444719,1.49292865,211.18,211.15,37.81]
[1758697445108,1.49292865,211.18,211.15,37.12]
[1758697445712,2.21292865,211.18,211.15,37.12]
[1758697445912,1.49292865,211.16,211.15,37.12]
[1758697446236,1.49292865,211.16,211.11,37.12]
[1758697446237,2.21292865,211.16,211.11,37.12]
[1758697446445,1.49292865,211.12,211.11,37.12]
[1758697446612,3.05786524,211.12,211.11,37.12]
[1758697447145,2.33786524,211.12,211.11,37.12]
[1758697447508,0.72,211.16,211.11,37.12]
[1758697447831,2.33786524,211.16,211.12,14.28559401]
[1758697448017,7.07367725,211.16,211.12,14.28559401]
[1758697448740,0.72,211.23,211.15,26.0]
[1758697448929,2.33786524,211.21,211.16,37.12]
[1758697449111,2.33786524,211.21,211.17,0.69]
[1758697449311,2.33786524,211.19,211.15,63.12]
[1758697449510,2.33786524,211.19,211.15,63.81]
[1758697450337,2.33786524,211.19,211.15,68.54596036]
[1758697450805,2.33786524,211.19,211.15,63.81]
[1758697451422,2.33786524,211.19,211.15,67.85591159]
[1758697451614,2.33786524,211.21,211.17,13.59559401]
[1758697451913,2.33786524,211.21,211.18,37.12]
[1758697452808,7.07249575,211.21,211.18,37.12]
[1758697453332,2.33786524,211.21,211.18,37.12]
[1758697453537,2.33786524,211.21,211.18,37.81]
[1758697456155,0.71,211.25,211.2,26.0]
[1758697456319,4.73327968,211.27,211.21,37.79]
[1758697456515,2.33786524,211.25,211.21,37.1]
[1758697456717,2.33786524,211.25,211.21,37.79]
[1758697457435,5.44327968,211.27,211.21,37.79]
[1758697457436,2.33786524,211.27,211.22,0.69]
[1758697457645,2.33786524,211.27,211.25,26.0]
[1758697457818,7.07117387,211.27,211.25,63.1]
[1758697458227,7.78117387,211.27,211.25,63.1]
[1758697458432,7.07117387,211.27,211.25,63.1]
[1758697458636,0.71,211.26,211.25,63.1]
[1758697459222,0.71,211.26,211.25,37.1]
[1758697459431,5.44350373,211.26,211.25,37.1]
[1758697459944,5.44350373,211.26,211.24,37.1]
[1758697460146,2.33786524,211.25,211.24,37.1]
[1758697462324,2.33786524,211.28,211.24,37.1]
[1758697462641,2.33786524,211.28,211.25,0.67]
[1758697463246,2.33786524,211.28,211.24,37.1]
[1758697463447,2.33786524,211.28,211.24,37.77]
[1758697463756,7.07096814,211.28,211.24,37.77]
[1758697463928,7.07096814,211.28,211.24,37.1]
[1758697464248,7.75096814,211.28,211.24,37.1]
[1758697464835,2.33786524,211.26,211.2,26.0]
[1758697465035,0.68,211.25,211.21,63.1]
[1758697465239,3.01786524,211.24,211.22,37.1]
[1758697465441,4.73417601,211.23,211.22,37.1]
[1758697465643,7.75183721,211.24,211.22,37.1]
[1758697466039,4.7337087,211.26,211.22,37.1]
[1758697466250,3.01786524,211.25,211.22,37.1]
[1758697466553,2.33786524,211.25,211.22,37.1]
[1758697467160,5.4139519,211.24,211.22,37.1]
[1758697467659,4.7339519,211.24,211.22,37.1]
[1758697468033,7.07159468,211.25,211.22,37.77]
[1758697468248,2.33786524,211.25,211.22,37.77]
[1758697468449,2.33786524,211.25,211.22,37.1]
[1758697469331,2.33786524,211.25,211.22,37.77]
[1758697469734,2.33786524,211.25,211.22,37.1]
[1758697470241,7.07161752,211.25,211.22,37.1]
[1758697470652,4.73344967,211.27,211.22,37.77]
[1758697470850,2.33786524,211.26,211.22,37.1]
[1758697471360,7.07158626,211.26,211.22,37.1]
[1758697471744,5.41372102,211.26,211.22,37.1]
[1758697472043,7.75158626,211.26,211.22,37.1]
[1758697473541,4.73372102,211.26,211.22,37.1]
[1758697473747,7.07158626,211.26,211.22,37.77]
[1758697473950,2.33786524,211.26,211.23,0.67]
[1758697474154,7.07137958,211.26,211.24,37.08]
[1758697474846,0.68,211.33,211.25,14.26559401]
[1758697475056,2.33786524,211.3,211.25,14.26559401]
[1758697475260,2.33786524,211.3,211.26,0.67]
[1758697475558,2.33786524,211.3,211.27,37.08]
[1758697475762,5.41237162,211.32,211.27,37.08]
[1758697475763,2.33786524,211.31,211.27,37.08]
[1758697475943,3.01786524,211.31,211.27,37.08]
[1758697476266,4.73260766,211.3,211.27,37.08]
[1758697477665,5.41224958,211.32,211.27,37.08]
[1758697477840,2.33786524,211.33,211.28,0.67]
[1758697478163,2.33786524,211.33,211.27,37.08]
[1758697478164,4.73215975,211.32,211.27,37.08]
[1758697478367,4.73215975,211.32,211.28,0.67]
[1758697478866,4.73215975,211.32,211.25,26.0]
[1758697479044,2.33786524,211.29,211.26,37.08]
[1758697479772,2.33786524,211.31,211.27,0.67]
[1758697480147,3.01786524,211.31,211.26,37.08]
[1758697480370,4.73260766,211.3,211.26,37.75]
[1758697482268,2.33786524,211.27,211.25,26.0]
[1758697482465,2.33786524,211.27,211.26,37.08]
[1758697482675,0.68,211.26,211.25,37.06]
[1758697483457,0.68,211.26,211.21,26.67]
[1758697483772,2.33786524,211.23,211.17,13.59559401]
[1758697483974,7.07293792,211.19,211.18,37.06]
[1758697484552,7.75293792,211.19,211.18,37.06]
[1758697485251,7.75293792,211.19,211.14,26.0]
[1758697485578,2.33786524,211.17,211.16,63.06]
[1758697486670,7.07338638,211.17,211.16,63.06]
[1758697487750,7.75338638,211.17,211.16,63.06]
[1758697488279,2.33786524,211.18,211.16,63.06]
[1758697488474,7.073128,211.19,211.16,63.06]
[1758697489153,7.753128,211.19,211.16,63.06]
[1758697489660,2.33786524,211.17,211.16,63.06]
[1758697490466,5.41526276,211.19,211.16,63.06]
[1758697490774,2.33786524,211.18,211.16,63.06]
[1758697490972,7.07321152,211.18,211.16,63.06]
[1758697493993,2.33786524,211.22,211.2,26.0]
[1758697494181,2.33786524,211.22,211.21,37.06]
[1758697495085,3.05786524,211.22,211.21,37.06]
[1758697495574,3.05786524,211.22,211.19,37.06]
[1758697495890,2.33786524,211.2,211.19,37.06]
[1758697496094,7.07271372,211.2,211.19,37.06]
[1758697496860,7.79271372,211.2,211.19,37.06]
[1758697498162,2.33786524,211.2,211.19,37.06]
[1758697498482,7.07241003,211.22,211.19,37.06]
[1758697498692,2.33786524,211.22,211.19,37.06]
[1758697499376,7.07227175,211.22,211.19,37.06]
[1758697499575,7.79227175,211.22,211.19,37.06]
[1758697500188,0.72,211.21,211.19,37.06]
[1758697500387,3.05786524,211.21,211.19,37.06]
[1758697500587,2.33786524,211.21,211.19,37.06]
[1758697500978,4.73440651,211.22,211.19,37.06]
[1758697501173,2.33786524,211.22,211.19,37.06]
[1758697502692,7.0723939,211.22,211.19,37.06]
[1758697503400,2.33786524,211.2,211.19,26.0]
[1758697503602,3.05786524,211.2,211.18,37.06]
[1758697503805,3.05786524,211.19,211.13,26.0]
[1758697503969,2.33786524,211.15,211.11,13.59559401]
[1758697504172,2.33786524,211.15,211.12,37.06]
[1758697504391,2.33786524,211.13,211.06,0.69]
[1758697504606,7.07494958,211.11,211.07,37.06]
[1758697505374,7.79494958,211.11,211.07,37.06]
[1758697505568,2.33786524,211.09,211.04,0.2]
[1758697505793,2.33786524,211.06,211.04,0.2]
[1758697506184,3.05786524,211.06,211.04,0.2]
[1758697506778,4.73821369,211.05,211.04,0.2]
[1758697507597,2.33786524,211.05,211.04,0.2]
[1758697508801,4.73776472,211.07,211.04,0.2]
[1758697508971,1.49739444,211.05,211.04,0.2]
[1758697510475,6.23560813,211.05,211.04,0.2]
[1758697512289,6.95560813,211.05,211.04,0.2]
[1758697512699,2.21739444,211.05,211.04,0.2]
[1758697512888,6.95560813,211.05,211.04,0.2]
[1758697513092,1.49739444,211.05,211.04,0.2]
[1758697513306,1.49739444,211.09,211.04,0.92]
[1758697513478,1.49739444,211.07,211.05,0.72]
[1758697513676,1.49739444,211.07,211.04,0.2]
[1758697514494,1.49739444,211.07,211.05,0.72]
[1758697514705,1.49739444,211.07,211.06,0.72]
[1758697514899,1.49739444,211.07,211.04,0.2]
[1758697515275,1.49739444,211.07,211.04,0.92]
[1758697515583,0.67,211.12,211.05,0.72]
[1758697515794,1.49739444,211.09,211.05,0.72]
[1758697515999,1.49739444,211.09,211.06,0.72]
[1758697516198,1.49739444,211.09,211.07,0.72]
[1758697516391,1.49739444,211.09,211.05,0.72]
[1758697516904,1.49739444,211.09,211.06,0.72]
[1758697517107,1.49739444,211.09,211.04,0.92]
[1758697517310,1.49739444,211.07,211.04,0.2]
[1758697517605,2.16739444,211.07,211.04,0.2]
[1758697517806,0.67,211.06,211.04,0.2]
[1758697518107,1.49739444,211.05,211.04,0.2]
[1758697518607,6.23515916,211.07,211.04,0.2]
[1758697518984,5.40776472,211.07,211.04,0.2]
[1758697519203,6.90515916,211.07,211.04,0.2]
[1758697519406,5.40776472,211.07,211.04,0.2]
[1758697519611,6.90515916,211.07,211.04,0.2]
[1758697520206,1.49739444,211.05,211.04,0.2]
[1758697520580,6.23560813,211.05,211.04,0.2]
[1758697520788,6.94560813,211.05,211.04,0.2]
[1758697521689,6.23560813,211.05,211.04,0.2]
[1758697521881,6.94560813,211.05,211.04,0.2]
[1758697522298,5.44821369,211.05,211.04,0.2]
[1758697522579,6.94560813,211.05,211.04,0.2]
[1758697527715,6.94560813,211.05,211.04,0.2]
[1758697530688,6.23560813,211.05,211.04,0.2]
[1758697531213,6.94560813,211.05,211.04,0.2]
[1758697532604,6.23560813,211.05,211.04,0.2]
[1758697533416,6.94560813,211.05,211.04,0.2]
[1758697533991,6.23560813,211.05,211.04,0.2]
[1758697535921,11.8444118,211.07,211.04,0.88]
[1758697535922,4.73796166,211.07,211.04,0.88]
[1758697536112,1.49739444,211.05,211.04,0.2]
[1758697537116,2.20739444,211.05,211.04,0.2]
[1758697537614,6.94560813,211.05,211.04,0.2]
[1758697540421,6.23560813,211.05,211.04,0.2]
[1758697548222,6.23560813,211.05,211.04,0.88]
[1758697548528,6.23560813,211.05,211.04,0.2]
[1758697549623,6.94560813,211.05,211.04,0.2]
[1758697550144,6.23560813,211.05,211.04,0.88]
[1758697550638,6.23560813,211.05,211.04,0.2]
[1758697550839,6.93560813,211.05,211.04,0.2]
[1758697553318,6.23560813,211.05,211.04,0.2]
[1758697553536,4.73821369,211.05,211.04,0.2]
[1758697553833,6.23560813,211.05,211.04,0.2]
[1758697554237,6.93560813,211.05,211.04,0.2]
[1758697555043,0.7,211.09,211.04,0.2]
[1758697555231,1.49739444,211.06,211.04,0.91]
[1758697555823,1.49739444,211.06,211.05,0.71]
[1758697556223,1.49739444,211.06,211.04,0.2]
[1758697556639,2.19739444,211.06,211.04,0.2]
[1758697557127,4.73821369,211.05,211.04,0.2]
[1758697557328,5.43821369,211.05,211.04,0.2]
[1758697557551,4.73821369,211.05,211.04,0.2]
[1758697558343,6.2354005,211.06,211.04,0.2]
[1758697559224,6.9354005,211.06,211.04,0.2]
[1758697559422,6.2354005,211.06,211.04,0.2]
[1758697560266,6.9354005,211.06,211.04,0.2]
[1758697561181,6.2354005,211.06,211.04,0.2]
[1758697561454,0.7,211.05,211.04,0.2]
[1758697563059,0.7,211.05,210.98,13.59559401]
[1758697563360,1.49739444,211.0,210.98,13.59559401]
[1758697563758,1.49739444,211.0,210.97,30.42]
[1758697564075,16.58453373,211.04,210.96,0.2]
[1758697564076,1.49739444,210.98,210.96,0.2]
[1758697564958,43.46772027,211.04,210.96,0.2]
[1758697565136,1.49739444,210.98,210.96,0.2]
[1758697565337,4.74001042,210.97,210.96,0.2]
[1758697566053,6.23721047,210.98,210.96,0.2]
[1758697567762,4.73955327,211.0,210.96,0.2]
[1758697567946,6.23694771,211.0,210.96,0.2]
[1758697568344,1.49739444,210.98,210.96,0.2]
[1758697569552,4.74001042,210.97,210.96,0.2]
[1758697570584,2.34118463,210.98,210.96,0.2]
[1758697572959,7.08112584,210.98,210.96,0.2]
[1758697575772,7.76112584,210.98,210.96,0.2]
[1758697576071,0.68,210.97,210.96,0.2]
[1758697576579,5.42001042,210.97,210.96,0.2]
[1758697578382,5.42001042,210.97,210.94,0.2]
[1758697578383,26.0,210.95,210.94,0.2]
[1758697578584,31.67994852,210.95,210.94,0.2]
[1758697578780,32.35994852,210.95,210.94,0.2]
[1758697579578,37.10040834,210.95,210.94,0.2]
[1758697579750,37.10040834,210.95,210.93,0.2]
[1758697579951,33.90380602,210.95,210.93,0.2]
[1758697580147,48.22054979,210.95,210.93,0.2]
[1758697580559,3.3318009,210.94,210.91,0.2]
[1758697580764,2.34118463,210.92,210.91,0.2]
[1758697581172,3.01118463,210.92,210.91,0.2]
[1758697581680,7.7523187,210.92,210.91,0.2]
[1758697586783,11.68498408,210.92,210.91,0.2]
[1758697587868,11.82714565,210.92,210.91,0.2]
[1758697588281,11.68498408,210.92,210.91,0.2]
[1758697590382,7.0823187,210.92,210.91,0.2]
[1758697590678,7.7523187,210.92,210.91,0.2]
[1758697592081,11.63267982,210.92,210.91,0.2]
[1758697592287,11.77484139,210.92,210.91,0.2]
[1758697598182,11.77484139,210.92,210.85,0.85]
[1758697598183,11.77484139,210.92,210.85,0.2]
[1758697598385,11.77484139,210.92,210.85,1e-08]
[1758697598386,4.82453083,210.86,210.85,1e-08]
[1758697598691,9.56701399,210.86,210.85,1e-08]
[1758697598889,10.23701399,210.86,210.85,1e-08]
[1758697599288,10.23701399,210.86,210.74,0.2]
[1758697599289,26.0,210.83,210.74,0.2]
[1758697599591,2.34118463,210.79,210.74,0.85]
[1758697599887,2.34118463,210.79,210.75,14.24559401]
[1758697600191,2.34118463,210.79,210.76,0.65]
[1758697600568,7.08539056,210.79,210.77,0.65]
[1758697600768,7.08539056,210.79,210.78,0.65]
[1758697601680,7.08539056,210.79,210.74,13.79559401]
[1758697601883,2.34118463,210.77,210.75,0.65]
[1758697602093,2.34118463,210.77,210.76,0.65]
[1758697603376,4.74381808,210.81,210.76,0.65]
[1758697603693,2.34118463,210.78,210.77,0.65]
[1758697605894,2.34118463,210.78,210.75,0.65]
[1758697606079,2.34118463,210.78,210.76,0.65]
[1758697606271,2.34118463,210.78,210.74,13.79559401]
[1758697606477,2.34118463,210.78,210.75,0.65]
[1758697606990,2.34118463,210.78,210.76,0.65]
[1758697607496,37.02,210.85,210.74,13.79559401]
[1758697607497,37.85628083,210.86,210.77,0.65]
[1758697607794,2.34118463,210.83,210.77,26.65]
[1758697607978,2.34118463,210.83,210.78,0.65]
[1758697608379,7.08455231,210.83,210.78,0.65]
[1758697608576,2.34118463,210.81,210.77,26.0]
[1758697608776,2.34118463,210.79,210.75,0.65]
[1758697609096,2.34118463,210.76,210.74,0.2]
[1758697609298,2.34118463,210.76,210.74,0.85]
[1758697610217,0.67,210.79,210.74,0.85]
[1758697610218,2.34118463,210.77,210.74,0.85]
[1758697610577,3.01118463,210.79,210.74,0.85]
[1758697610779,7.08546421,210.79,210.75,0.7]
[1758697611884,5.44427958,210.79,210.74,0.2]
[1758697612085,2.34118463,210.78,210.74,0.9]
[1758697612299,2.34118463,210.76,210.74,0.2]
[1758697612487,4.74495848,210.75,210.74,0.2]
[1758697612689,5.44495848,210.75,210.74,0.2]
[1758697617307,7.78614311,210.75,210.74,0.2]
[1758697619304,7.08614311,210.75,210.74,0.2]
[1758697619705,7.78614311,210.75,210.74,0.2]
[1758697620111,7.78614311,210.75,210.7,0.2]
[1758697620112,19.79070088,210.75,210.7,0.2]
[1758697620313,2.34118463,210.71,210.7,0.2]
[1758697620698,3.04118463,210.71,210.7,0.2]
[1758697621089,0.7,210.78,210.7,0.9]
[1758697621298,2.34118463,210.74,210.71,0.7]
[1758697621791,2.34118463,210.74,210.72,0.7]
[1758697622102,0.7,210.82,210.73,0.7]
[1758697622292,2.34118463,210.78,210.73,0.7]
[1758697622615,2.34118463,210.78,210.74,0.7]
[1758697622800,2.34118463,210.78,210.75,0.7]
[1758697623195,2.34118463,210.82,210.76,0.7]
[1758697624001,3.04118463,210.82,210.76,0.7]
[1758697624451,5.44352267,210.82,210.76,0.7]
[1758697624596,7.7847073,210.82,210.76,0.7]
[1758697624797,7.0847073,210.82,210.76,0.7]
[1758697625201,2.34118463,210.8,210.71,37.02]
[1758697625420,0.7,210.79,210.74,26.0]
[1758697625598,0.7,210.79,210.74,26.7]
[1758697626097,16.60198012,210.82,210.7,26.2]
[1758697626098,2.34118463,210.76,210.7,26.2]
[1758697626299,0.7,210.75,210.7,26.2]
[1758697626499,5.44518363,210.74,210.7,0.2]
[1758697627110,0.7,210.73,210.7,0.2]
[1758697627618,0.7,210.72,210.7,0.2]
[1758697628226,0.7,210.71,210.7,0.2]
[1758697628723,5.44585923,210.71,210.7,0.2]
[1758697629237,4.74585923,210.71,210.7,0.2]
[1758697629734,7.08643293,210.74,210.7,0.9]
[1758697629932,0.7,210.73,210.7,0.2]
[1758697630326,0.7,210.72,210.7,0.2]
[1758697630523,0.7,210.71,210.7,0.2]
[1758697631239,4.74585923,210.71,210.7,0.2]
[1758697631836,4.74564278,210.72,210.7,0.2]
[1758697632537,7.0863701,210.74,210.7,0.9]
[1758697632740,4.74518547,210.74,210.7,0.9]
[1758697633140,5.44518547,210.74,210.7,0.2]
[1758697633738,0.7,210.73,210.7,0.2]
[1758697634635,4.74518547,210.74,210.7,0.87]
[1758697635139,5.44518547,210.74,210.7,0.2]
[1758697635342,0.7,210.74,210.7,0.87]
[1758697635649,1.50170569,210.75,210.7,0.87]
[1758697635824,145.76088946,210.78,210.71,0.67]
[1758697635825,1.50170569,210.77,210.71,0.67]
[1758697636520,2.20170569,210.77,210.71,0.67]
[1758697636721,4.74477887,210.76,210.71,0.67]
[1758697636924,4.74477887,210.76,210.72,0.67]
[1758697637128,4.74477887,210.76,210.71,4.74577676]
[1758697637324,4.74477887,210.76,210.72,0.67]
[1758697637844,5.44477887,210.76,210.71,4.74577676]
[1758697638017,5.44477887,210.76,210.71,5.41577676]
[1758697638452,5.44444111,210.78,210.72,14.26559401]
[1758697638617,0.7,210.77,210.72,13.59559401]
[1758697638946,0.7,210.76,210.71,13.59559401]
[1758697639457,18.10685464,210.78,210.71,14.26559401]
[1758697639648,0.7,210.75,210.71,14.26559401]
[1758697640321,0.7,210.75,210.7,0.2]
[1758697640322,1.50170569,210.76,210.7,0.2]
[1758697640519,0.68,210.75,210.7,0.2]
[1758697640744,0.68,210.74,210.7,26.2]
[1758697640947,0.68,210.73,210.7,26.2]
[1758697641143,0.68,210.75,210.7,26.2]
[1758697641339,0.68,210.74,210.7,26.2]
[1758697641521,1.50170569,210.76,210.7,26.2]
[1758697641726,0.68,210.75,210.7,0.2]
[1758697641939,1.50170569,210.74,210.7,0.2]
[1758697642138,0.68,210.73,210.7,0.2]
[1758697642341,1.50170569,210.74,210.7,0.2]
[1758697642635,4.74585923,210.71,210.7,0.2]
[1758697642853,16.60509948,210.78,210.7,0.2]
[1758697643026,0.68,210.75,210.7,0.9]
[1758697643358,0.68,210.74,210.7,0.2]
[1758697644749,5.42528837,210.74,210.7,0.2]
[1758697645050,6.2466845,210.75,210.7,0.9]
[1758697645244,0.68,210.74,210.7,0.2]
[1758697646327,5.42526306,210.74,210.7,0.2]
[1758697647547,4.74526306,210.74,210.7,0.2]
[1758697647750,0.68,210.73,210.7,0.2]
[1758697648136,4.74526306,210.74,210.7,0.2]
[1758697648440,0.68,210.72,210.7,0.2]
[1758697649449,4.74518363,210.74,210.7,0.2]
[1758697649646,0.68,210.73,210.7,0.2]
[1758697650650,5.42559998,210.73,210.7,0.2]
[1758697651853,0.68,210.73,210.7,0.2]
[1758697653443,5.42540893,210.73,210.7,0.2]
[1758697654485,0.68,210.77,210.71,0.7]
[1758697654966,0.68,210.77,210.7,6.44769368]
[1758697655146,6.24598882,210.78,210.7,6.44769368]
[1758697655348,0.68,210.76,210.7,4.94598799]
[1758697655655,0.68,210.75,210.7,4.94598799]
[1758697655863,0.68,210.74,210.7,4.94598799]
[1758697656561,0.68,210.74,210.7,5.64598799]
[1758697659675,0.68,210.74,210.7,0.9]
[1758697660769,0.68,210.74,210.7,5.64605165]
[1758697662376,5.4252374,210.74,210.7,0.9]
[1758697663882,0.68,210.74,210.7,0.9]
[1758697664059,4.74496342,210.75,210.7,0.9]
[1758697664060,0.68,210.73,210.7,13.79559401]
[1758697664258,0.68,210.72,210.7,13.79559401]
[1758697664763,16.6065667,210.76,210.7,0.2]
[1758697664764,2.18170569,210.71,210.7,0.2]
[1758697666173,0.68,210.75,210.7,0.9]
[1758697666373,1.50170569,210.73,210.7,0.2]
[1758697666582,0.68,210.72,210.7,0.2]
[1758697666959,0.68,210.71,210.7,0.2]
[1758697668580,6.92756492,210.71,210.7,0.2]
[1758697671568,5.42585923,210.71,210.7,0.2]
[1758697671878,6.92756492,210.71,210.7,0.2]
[1758697682273,7.06972649,210.71,210.7,0.2]
[1758697682683,18.93341805,210.71,210.7,0.2]
[1758697682968,18.93341805,210.71,210.7,1e-08]
[1758697686101,0.14216157,210.7,210.69,1e-08]
[1758697686597,0.86216157,210.7,210.69,1e-08]
[1758697686807,15.14073656,210.7,210.69,1e-08]
[1758697687893,19.88682104,210.7,210.69,1e-08]
[1758697689811,0.14216157,210.66,210.58,0.72]
[1758697690105,1.50170569,210.61,210.58,0.72]
[1758697690274,1.50170569,210.61,210.56,26.0]
[1758697690477,1.50170569,210.61,210.57,0.72]
[1758697691010,0.72,210.65,210.58,39.59559401]
[1758697691011,1.50170569,210.64,210.58,39.59559401]
[1758697691309,1.50170569,210.64,210.59,0.72]
[1758697691514,1.50170569,210.65,210.59,0.72]
[1758697691692,5.83363442,210.67,210.59,0.72]
[1758697692024,4.74743638,210.64,210.59,0.72]
[1758697692207,1.50170569,210.65,210.59,5.46852435]
[1758697692403,1.50170569,210.65,210.6,0.72]
[1758697693112,14.27925462,210.69,210.61,13.59559401]
[1758697693420,1.50170569,210.68,210.62,0.72]
[1758697694177,1.50170569,210.66,210.62,0.72]
[1758697694381,2.19170569,210.66,210.58,30.74868665]
[1758697694602,2.34834867,210.65,210.61,0.68]
[1758697694804,2.34834867,210.65,210.62,0.68]
[1758697695387,2.34834867,210.65,210.59,13.59559401]
[1758697695589,2.34834867,210.63,210.58,26.68]
[1758697695778,4.74788719,210.62,210.58,26.68]
[1758697695982,4.74788719,210.62,210.58,0.68]
[1758697696186,5.43788719,210.62,210.58,0.68]
[1758697696512,17.30760516,210.62,210.56,14.27559401]
[1758697696885,17.30760516,210.62,210.56,0.68]
[1758697698690,2.34834867,210.61,210.56,0.68]
[1758697699209,0.69,210.6,210.56,0.68]
[1758697699903,4.74834785,210.6,210.55,41.92944636]
[1758697700108,7.09647415,210.61,210.57,0.68]
[1758697700292,7.78647415,210.61,210.57,0.68]
[1758697700487,17.30840704,210.61,210.57,0.69]
[1758697700705,2.34834867,210.6,210.57,0.69]
[1758697701098,2.34834867,210.6,210.55,26.89]
[1758697701303,0.69,210.6,210.56,0.69]
[1758697701505,18.96675571,210.61,210.56,0.69]
[1758697701707,7.09647415,210.61,210.57,0.69]
[1758697701888,7.78647415,210.61,210.55,30.94944853]
[1758697702088,7.78647415,210.61,210.55,31.63944853]
[1758697702517,7.78647415,210.61,210.55,30.94944853]
[1758697702833,7.78647415,210.61,210.56,0.69]
[1758697703196,7.09647415,210.61,210.56,0.69]
[1758697703406,7.78647415,210.61,210.56,0.69]
[1758697705222,14.28265371,210.64,210.57,0.69]
[1758697705411,16.63100238,210.64,210.57,37.67]
[1758697705722,2.34834867,210.64,210.58,0.69]
[1758697706200,2.34834867,210.62,210.58,0.69]
[1758697707324,7.78635602,210.62,210.58,0.69]
[1758697708528,7.09635602,210.62,210.59,0.69]
[1758697709029,7.78592423,210.64,210.59,0.69]
[1758697709208,0.69,210.63,210.59,0.69]
[1758697709411,2.34834867,210.63,210.6,0.69]
[1758697709916,2.34834867,210.63,210.61,0.69]
[1758697710719,2.34834867,210.63,210.59,4.74855471]
[1758697710914,2.34834867,210.64,210.6,0.69]
[1758697711107,2.34834867,210.64,210.57,41.72891775]
[1758697711333,2.34834867,210.64,210.6,0.69]
[1758697712029,7.09584376,210.64,210.6,0.69]
[1758697712727,2.34834867,210.64,210.6,0.69]
[1758697713599,3.03834867,210.64,210.6,0.69]
[1758697714034,4.74676033,210.67,210.6,4.74822219]
[1758697714222,0.69,210.68,210.61,14.28559401]
[1758697714410,2.34834867,210.66,210.62,36.96]
[1758697714605,2.34834867,210.66,210.62,37.65]
[1758697715610,3.03834867,210.66,210.62,37.65]
[1758697716129,3.03834867,210.66,210.62,36.96]
[1758697716327,2.34834867,210.64,210.62,36.96]
[1758697716626,0.69,210.63,210.62,36.96]
[1758697717633,2.34834867,210.64,210.62,36.96]
[1758697717831,3.03834867,210.64,210.62,36.96]